[Event "Live Chess"]
[Site "Chess.com"]
[Date "2011.01.18"]
[Round "-"]
[White "Peter-Petrosian"]
[Black "hipposcottimus"]
[Result "1-0"]
[CurrentPosition "r2q1rk1/pn2Qppp/8/8/3p1B2/3P4/PPP2PPP/R3R1K1 b - -"]
[Timezone "UTC"]
[ECO "C67"]
[ECOUrl "https://www.chess.com/openings/Ruy-Lopez-Opening-Berlin-Rio-Gambit-Accepted"]
[UTCDate "2011.01.18"]
[UTCTime "00:03:07"]
[WhiteElo "1694"]
[BlackElo "1368"]
[TimeControl "600"]
[Termination "Peter-Petrosian won on time"]
[StartTime "00:03:07"]
[EndDate "2011.01.18"]
[EndTime "00:07:54"]
[Link "https://www.chess.com/game/live/88659272"]

1. e4 {[%clk 0:10:00]} 1... e5 {[%clk 0:10:00]} 2. Nf3 {[%clk 0:09:56.8]} 2... Nc6 {[%clk 0:09:57.1]} 3. Bb5 {[%clk 0:09:54.4]} 3... Nf6 {[%clk 0:09:56.8]} 4. O-O {[%clk 0:09:50.9]} 4... Nxe4 {[%clk 0:09:54.1]} 5. Bxc6 {[%clk 0:09:47.8]} 5... bxc6 {[%clk 0:09:51.1]} 6. Nxe5 {[%clk 0:09:45.9]} 6... d5 {[%clk 0:09:49.1]} 7. Nxc6 {[%clk 0:09:38.8]} 7... Qd6 {[%clk 0:09:45.3]} 8. Nd4 {[%clk 0:09:36.4]} 8... Be7 {[%clk 0:09:41.1]} 9. d3 {[%clk 0:09:31.2]} 9... Nf6 {[%clk 0:09:34.6]} 10. Re1 {[%clk 0:09:26.8]} 10... O-O {[%clk 0:09:32.6]} 11. Qf3 {[%clk 0:09:21.4]} 11... c5 {[%clk 0:09:30.3]} 12. Nf5 {[%clk 0:09:13.4]} 12... Bxf5 {[%clk 0:09:26.9]} 13. Qxf5 {[%clk 0:09:12.4]} 13... d4 {[%clk 0:09:19]} 14. Bf4 {[%clk 0:09:05.5]} 14... Qd8 {[%clk 0:07:22.4]} 15. Nd2 {[%clk 0:09:01.5]} 15... Bd6 {[%clk 0:07:18.9]} 16. Ne4 {[%clk 0:08:53.6]} 16... Ne8 {[%clk 0:07:12.1]} 17. Nxd6 {[%clk 0:08:37.9]} 17... Nxd6 {[%clk 0:07:07.2]} 18. Qxc5 {[%clk 0:08:37.2]} 18... Nb7 {[%clk 0:06:58.1]} 19. Qe7 {[%clk 0:08:24.5]} 1-0

[Event "Live Chess"]
[Site "Chess.com"]
[Date "2011.01.17"]
[Round "-"]
[White "hipposcottimus"]
[Black "MicrowaveWalrus"]
[Result "1-0"]
[CurrentPosition "4r2k/p2n2Q1/2pq1P1p/1p6/8/8/PPP3PP/R4R1K b - -"]
[Timezone "UTC"]
[ECO "C41"]
[ECOUrl "https://www.chess.com/openings/Philidor-Defense-3.d4-Bg4-4.dxe5"]
[UTCDate "2011.01.17"]
[UTCTime "22:48:29"]
[WhiteElo "1370"]
[BlackElo "1250"]
[TimeControl "300"]
[Termination "hipposcottimus won by checkmate"]
[StartTime "22:48:29"]
[EndDate "2011.01.17"]
[EndTime "22:52:22"]
[Link "https://www.chess.com/game/live/88641778"]

1. e4 {[%clk 0:05:00]} 1... e5 {[%clk 0:05:00]} 2. Nf3 {[%clk 0:04:58.3]} 2... d6 {[%clk 0:04:58.5]} 3. d4 {[%clk 0:04:55.9]} 3... Bg4 {[%clk 0:04:54.4]} 4. dxe5 {[%clk 0:04:55]} 4... Bxf3 {[%clk 0:04:52.1]} 5. Qxf3 {[%clk 0:04:54.7]} 5... dxe5 {[%clk 0:04:49.3]} 6. Bc4 {[%clk 0:04:54.4]} 6... Nf6 {[%clk 0:04:45.3]} 7. Nc3 {[%clk 0:04:49.5]} 7... Be7 {[%clk 0:04:40.9]} 8. O-O {[%clk 0:04:43.8]} 8... O-O {[%clk 0:04:38.6]} 9. Qe2 {[%clk 0:04:43.4]} 9... c6 {[%clk 0:04:32.3]} 10. f4 {[%clk 0:04:42.1]} 10... exf4 {[%clk 0:04:29.7]} 11. Bxf4 {[%clk 0:04:40.1]} 11... b5 {[%clk 0:04:26]} 12. Bd3 {[%clk 0:04:39.8]} 12... Qd4+ {[%clk 0:04:20.7]} 13. Kh1 {[%clk 0:04:33.2]} 13... Bd6 {[%clk 0:04:17.3]} 14. Be3 {[%clk 0:04:29.2]} 14... Qe5 {[%clk 0:04:11.2]} 15. Bf4 {[%clk 0:04:24.9]} 15... Qe7 {[%clk 0:04:05.7]} 16. Bxd6 {[%clk 0:04:23.6]} 16... Qxd6 {[%clk 0:04:04.4]} 17. e5 {[%clk 0:04:13.9]} 17... Qc7 {[%clk 0:03:52.6]} 18. exf6 {[%clk 0:04:10]} 18... g6 {[%clk 0:03:45.9]} 19. Ne4 {[%clk 0:03:59.1]} 19... Re8 {[%clk 0:03:43.6]} 20. Qg4 {[%clk 0:03:54]} 20... h6 {[%clk 0:03:39.1]} 21. Ng3 {[%clk 0:03:43.9]} 21... Nd7 {[%clk 0:03:26.8]} 22. Nf5 {[%clk 0:03:42]} 22... Kh7 {[%clk 0:03:17.7]} 23. Nh4 {[%clk 0:03:30.6]} 23... Qd6 {[%clk 0:03:10.3]} 24. Nxg6 {[%clk 0:03:26]} 24... fxg6 {[%clk 0:03:08.8]} 25. Bxg6+ {[%clk 0:03:24.2]} 25... Kh8 {[%clk 0:03:02.7]} 26. Bxe8 {[%clk 0:03:21.4]} 26... Rxe8 {[%clk 0:03:00.2]} 27. Qg7# {[%clk 0:03:20.1]} 1-0

[Event "Live Chess"]
[Site "Chess.com"]
[Date "2011.01.17"]
[Round "-"]
[White "MicrowaveWalrus"]
[Black "hipposcottimus"]
[Result "1-0"]
[CurrentPosition "r1b2r1k/pp4pp/5n2/1N3p2/2B1pR2/N7/PPP1Q1PP/R5K1 b - -"]
[Timezone "UTC"]
[ECO "A02"]
[ECOUrl "https://www.chess.com/openings/Birds-Opening-Double-Duck-Formation"]
[UTCDate "2011.01.17"]
[UTCTime "22:46:08"]
[WhiteElo "1256"]
[BlackElo "1364"]
[TimeControl "300"]
[Termination "MicrowaveWalrus won by resignation"]
[StartTime "22:46:08"]
[EndDate "2011.01.17"]
[EndTime "22:48:17"]
[Link "https://www.chess.com/game/live/88641029"]

1. d4 {[%clk 0:05:00]} 1... d5 {[%clk 0:05:00]} 2. f4 {[%clk 0:04:58.8]} 2... f5 {[%clk 0:04:57.3]} 3. e3 {[%clk 0:04:57.2]} 3... c5 {[%clk 0:04:53.8]} 4. dxc5 {[%clk 0:04:53.8]} 4... e6 {[%clk 0:04:52.4]} 5. Bd3 {[%clk 0:04:48.1]} 5... Bxc5 {[%clk 0:04:49.8]} 6. Nf3 {[%clk 0:04:39.9]} 6... Nf6 {[%clk 0:04:48]} 7. O-O {[%clk 0:04:36.2]} 7... O-O {[%clk 0:04:46.9]} 8. Bd2 {[%clk 0:04:32.8]} 8... Nc6 {[%clk 0:04:42.5]} 9. Qe2 {[%clk 0:04:23.7]} 9... Bd6 {[%clk 0:04:39.3]} 10. Bc3 {[%clk 0:04:18.5]} 10... d4 {[%clk 0:04:32.5]} 11. exd4 {[%clk 0:04:16.9]} 11... Bxf4 {[%clk 0:04:31.6]} 12. Na3 {[%clk 0:03:58]} 12... Nxd4 {[%clk 0:04:29.7]} 13. Bxd4 {[%clk 0:03:54]} 13... Qxd4+ {[%clk 0:04:28.9]} 14. Nxd4 {[%clk 0:03:51.4]} 14... e5 {[%clk 0:04:24.4]} 15. Ndb5 {[%clk 0:03:42.5]} 15... e4 {[%clk 0:04:23.8]} 16. Bc4+ {[%clk 0:03:40]} 16... Kh8 {[%clk 0:04:22.1]} 17. Rxf4 {[%clk 0:03:37.4]} 1-0

[Event "Live Chess"]
[Site "Chess.com"]
[Date "2011.01.17"]
[Round "-"]
[White "hipposcottimus"]
[Black "yerlan"]
[Result "0-1"]
[CurrentPosition "2r3k1/4Rp1p/6p1/2P5/8/3n4/5PPP/5K2 w - -"]
[Timezone "UTC"]
[ECO "C62"]
[ECOUrl "https://www.chess.com/openings/Ruy-Lopez-Opening-Old-Steinitz-Defense-4.d4-exd4-5.Qxd4"]
[UTCDate "2011.01.17"]
[UTCTime "06:47:15"]
[WhiteElo "1374"]
[BlackElo "1365"]
[TimeControl "600"]
[Termination "yerlan won - game abandoned"]
[StartTime "06:47:15"]
[EndDate "2011.01.17"]
[EndTime "06:59:48"]
[Link "https://www.chess.com/game/live/88406579"]

1. e4 {[%clk 0:10:00]} 1... e5 {[%clk 0:10:00]} 2. Nf3 {[%clk 0:09:58.8]} 2... d6 {[%clk 0:09:59.2]} 3. d4 {[%clk 0:09:57.2]} 3... exd4 {[%clk 0:09:57.6]} 4. Qxd4 {[%clk 0:09:53.2]} 4... Nc6 {[%clk 0:09:54.3]} 5. Bb5 {[%clk 0:09:51.7]} 5... Bd7 {[%clk 0:09:50.5]} 6. Bxc6 {[%clk 0:09:45.8]} 6... Bxc6 {[%clk 0:09:49]} 7. c4 {[%clk 0:09:44.3]} 7... Qf6 {[%clk 0:09:23.4]} 8. e5 {[%clk 0:09:35.4]} 8... dxe5 {[%clk 0:09:13.8]} 9. Nxe5 {[%clk 0:09:31.4]} 9... Rd8 {[%clk 0:08:50.7]} 10. Qe3 {[%clk 0:09:02.3]} 10... Bb4+ {[%clk 0:08:46.6]} 11. Bd2 {[%clk 0:08:55.9]} 11... Bxd2+ {[%clk 0:08:45.1]} 12. Nxd2 {[%clk 0:08:53.3]} 12... Ne7 {[%clk 0:08:00.8]} 13. O-O {[%clk 0:08:22.1]} 13... O-O {[%clk 0:07:53.7]} 14. Qg3 {[%clk 0:07:55.9]} 14... Rxd2 {[%clk 0:07:43.5]} 15. Rae1 {[%clk 0:07:46.2]} 15... Nf5 {[%clk 0:07:05.7]} 16. Qf4 {[%clk 0:07:35.3]} 16... Rxb2 {[%clk 0:06:40.6]} 17. Ng4 {[%clk 0:07:27]} 17... Qg6 {[%clk 0:06:25.2]} 18. Ne5 {[%clk 0:06:52]} 18... Qf6 {[%clk 0:06:18.6]} 19. Nd3 {[%clk 0:06:42.2]} 19... Rxa2 {[%clk 0:06:06.6]} 20. Qxc7 {[%clk 0:06:33.8]} 20... Qg6 {[%clk 0:06:02.8]} 21. Nf4 {[%clk 0:06:27.2]} 21... Qd6 {[%clk 0:05:38.3]} 22. Re7 {[%clk 0:05:45.7]} 22... Qxc7 {[%clk 0:05:04.8]} 23. Rxc7 {[%clk 0:05:41.5]} 23... Re8 {[%clk 0:04:52.1]} 24. Nd5 {[%clk 0:05:28.5]} 24... Rae2 {[%clk 0:04:41.2]} 25. Nb4 {[%clk 0:04:58]} 25... Nd4 {[%clk 0:03:53.2]} 26. Nxc6 {[%clk 0:04:46.5]} 26... Nxc6 {[%clk 0:03:45]} 27. Rxb7 {[%clk 0:04:44.2]} 27... Re1 {[%clk 0:03:43.1]} 28. Rc7 {[%clk 0:04:40.1]} 28... Rxf1+ {[%clk 0:03:40]} 29. Kxf1 {[%clk 0:04:37.4]} 29... Ne5 {[%clk 0:03:29.1]} 30. c5 {[%clk 0:04:33.3]} 30... g6 {[%clk 0:03:26.3]} 31. Rxa7 {[%clk 0:04:32.1]} 31... Rc8 {[%clk 0:03:24.5]} 32. Re7 {[%clk 0:04:23.8]} 32... Nd3 {[%clk 0:03:19.5]} 0-1

[Event "Live Chess"]
[Site "Chess.com"]
[Date "2011.01.17"]
[Round "-"]
[White "hipposcottimus"]
[Black "hoodmofo"]
[Result "1-0"]
[CurrentPosition "8/p2RQ3/4k1p1/1p3p1p/4r3/1P6/2r4P/6K1 b - -"]
[Timezone "UTC"]
[ECO "B20"]
[ECOUrl "https://www.chess.com/openings/Sicilian-Defense"]
[UTCDate "2011.01.17"]
[UTCTime "06:33:20"]
[WhiteElo "1383"]
[BlackElo "1211"]
[TimeControl "420+5"]
[Termination "hipposcottimus won by checkmate"]
[StartTime "06:33:20"]
[EndDate "2011.01.17"]
[EndTime "06:41:20"]
[Link "https://www.chess.com/game/live/88404650"]

1. e4 {[%clk 0:07:00]} 1... c5 {[%clk 0:07:00]} 2. Bb5 {[%clk 0:07:02.5]} 2... Nf6 {[%clk 0:07:01.7]} 3. e5 {[%clk 0:07:05.6]} 3... Nd5 {[%clk 0:07:03.1]} 4. c4 {[%clk 0:07:09.3]} 4... Nb6 {[%clk 0:07:07]} 5. Nf3 {[%clk 0:07:10.7]} 5... e6 {[%clk 0:07:03.1]} 6. d4 {[%clk 0:07:14.2]} 6... cxd4 {[%clk 0:07:05.4]} 7. Nxd4 {[%clk 0:07:17.9]} 7... Be7 {[%clk 0:07:05.1]} 8. f4 {[%clk 0:07:20.4]} 8... O-O {[%clk 0:07:08]} 9. O-O {[%clk 0:07:24.6]} 9... d5 {[%clk 0:07:11]} 10. Nd2 {[%clk 0:07:18.8]} 10... Bc5 {[%clk 0:07:03.4]} 11. Nf3 {[%clk 0:06:49.7]} 11... Nxc4 {[%clk 0:07:00]} 12. Kh1 {[%clk 0:06:48.8]} 12... Bd7 {[%clk 0:06:51.9]} 13. Bxc4 {[%clk 0:06:50.3]} 13... dxc4 {[%clk 0:06:52.8]} 14. Be3 {[%clk 0:06:46.9]} 14... Nc6 {[%clk 0:06:53.5]} 15. Nc2 {[%clk 0:06:47.2]} 15... Bxe3 {[%clk 0:06:55.7]} 16. Nxe3 {[%clk 0:06:51.4]} 16... b5 {[%clk 0:06:51.7]} 17. b3 {[%clk 0:06:55.1]} 17... cxb3 {[%clk 0:06:55.1]} 18. axb3 {[%clk 0:06:56.7]} 18... Bc8 {[%clk 0:06:47.5]} 19. Qc2 {[%clk 0:06:58.5]} 19... Bb7 {[%clk 0:06:46.4]} 20. Ng5 {[%clk 0:07:00.2]} 20... g6 {[%clk 0:06:26.3]} 21. Qf2 {[%clk 0:06:59.7]} 21... Nd4 {[%clk 0:06:23.9]} 22. Qh4 {[%clk 0:07:00.9]} 22... h5 {[%clk 0:06:25.3]} 23. f5 {[%clk 0:07:02.6]} 23... Nxf5 {[%clk 0:06:27.1]} 24. Nxf5 {[%clk 0:07:06.6]} 24... exf5 {[%clk 0:06:30.6]} 25. Rad1 {[%clk 0:07:06.4]} 25... Qe7 {[%clk 0:06:28.2]} 26. Rde1 {[%clk 0:06:43.1]} 26... Rac8 {[%clk 0:06:24.4]} 27. e6 {[%clk 0:06:34.6]} 27... Rc2 {[%clk 0:06:15]} 28. exf7+ {[%clk 0:06:36.4]} 28... Rxf7 {[%clk 0:06:13.5]} 29. Rxe7 {[%clk 0:06:34.8]} 29... Rxe7 {[%clk 0:06:13.4]} 30. Rd1 {[%clk 0:06:36.1]} 30... Bxg2+ {[%clk 0:05:57.2]} 31. Kg1 {[%clk 0:06:37.7]} 31... Be4 {[%clk 0:05:51.2]} 32. Kf1 {[%clk 0:06:24.1]} 32... Bg2+ {[%clk 0:05:41.5]} 33. Kg1 {[%clk 0:06:25.6]} 33... Be4 {[%clk 0:05:45]} 34. Nxe4 {[%clk 0:06:29]} 34... Rxe4 {[%clk 0:05:47.8]} 35. Rd8+ {[%clk 0:06:29.6]} 35... Kf7 {[%clk 0:05:49.3]} 36. Rd7+ {[%clk 0:06:28.3]} 36... Ke6 {[%clk 0:05:52.1]} 37. Qe7# {[%clk 0:06:31.6]} 1-0

[Event "Live Chess"]
[Site "Chess.com"]
[Date "2011.01.17"]
[Round "-"]
[White "EastGotHops"]
[Black "hipposcottimus"]
[Result "0-1"]
[CurrentPosition "6k1/8/6p1/4P1P1/1qp5/7R/p1K5/8 w - -"]
[Timezone "UTC"]
[ECO "A03"]
[ECOUrl "https://www.chess.com/openings/Birds-Opening-Dutch-Variation-2.Nf3"]
[UTCDate "2011.01.17"]
[UTCTime "01:11:44"]
[WhiteElo "1144"]
[BlackElo "1379"]
[TimeControl "600"]
[Termination "hipposcottimus won by resignation"]
[StartTime "01:11:44"]
[EndDate "2011.01.17"]
[EndTime "01:25:47"]
[Link "https://www.chess.com/game/live/88337991"]

1. f4 {[%clk 0:10:00]} 1... d5 {[%clk 0:10:00]} 2. Nf3 {[%clk 0:09:58.5]} 2... Nc6 {[%clk 0:09:58.4]} 3. e3 {[%clk 0:09:55.7]} 3... Bg4 {[%clk 0:09:58]} 4. h3 {[%clk 0:09:53.5]} 4... Bxf3 {[%clk 0:09:54.5]} 5. Qxf3 {[%clk 0:09:51.6]} 5... e5 {[%clk 0:09:54.2]} 6. Bb5 {[%clk 0:09:47]} 6... e4 {[%clk 0:09:50.8]} 7. Bxc6+ {[%clk 0:09:44.4]} 7... bxc6 {[%clk 0:09:50.4]} 8. Qf2 {[%clk 0:09:43.3]} 8... Nf6 {[%clk 0:09:50]} 9. O-O {[%clk 0:09:42.2]} 9... Bd6 {[%clk 0:09:49.4]} 10. g3 {[%clk 0:09:40.4]} 10... O-O {[%clk 0:09:49.1]} 11. g4 {[%clk 0:09:21.6]} 11... c5 {[%clk 0:09:34.8]} 12. Qg2 {[%clk 0:09:03.3]} 12... d4 {[%clk 0:09:32.5]} 13. g5 {[%clk 0:08:48.1]} 13... dxe3 {[%clk 0:09:17.3]} 14. dxe3 {[%clk 0:08:44.6]} 14... Nd5 {[%clk 0:08:58.5]} 15. Qxe4 {[%clk 0:08:33.5]} 15... Ne7 {[%clk 0:08:29.8]} 16. Nd2 {[%clk 0:08:10.5]} 16... f6 {[%clk 0:08:27.8]} 17. h4 {[%clk 0:07:58.5]} 17... fxg5 {[%clk 0:08:26.5]} 18. hxg5 {[%clk 0:07:56.2]} 18... Re8 {[%clk 0:08:04.8]} 19. Qf3 {[%clk 0:07:43.9]} 19... Rf8 {[%clk 0:07:59.6]} 20. Rf2 {[%clk 0:07:41.6]} 20... c4 {[%clk 0:07:50.8]} 21. Nxc4 {[%clk 0:07:25]} 21... Bc5 {[%clk 0:07:47]} 22. Rh2 {[%clk 0:07:19]} 22... Nd5 {[%clk 0:07:41.7]} 23. Qe4 {[%clk 0:07:09.5]} 23... g6 {[%clk 0:07:36.1]} 24. Qe6+ {[%clk 0:06:42.1]} 24... Rf7 {[%clk 0:07:30.5]} 25. Rxh7 {[%clk 0:06:13.5]} 25... Kxh7 {[%clk 0:06:41.6]} 26. Qxf7+ {[%clk 0:06:11.4]} 26... Kh8 {[%clk 0:06:41.3]} 27. Qe6 {[%clk 0:05:58.2]} 27... Nxf4 {[%clk 0:06:34.9]} 28. Qe5+ {[%clk 0:05:46.3]} 28... Kh7 {[%clk 0:06:22.4]} 29. Qxf4 {[%clk 0:05:40]} 29... Qd1+ {[%clk 0:06:19.4]} 30. Kg2 {[%clk 0:05:28.3]} 30... Qxc2+ {[%clk 0:06:13.2]} 31. Kf3 {[%clk 0:05:15.1]} 31... Rf8 {[%clk 0:06:07.3]} 32. Qxf8 {[%clk 0:05:13.7]} 32... Bxf8 {[%clk 0:06:06.2]} 33. Ne5 {[%clk 0:04:41.5]} 33... Qf5+ {[%clk 0:06:02.8]} 34. Ke2 {[%clk 0:04:34.5]} 34... Qxe5 {[%clk 0:06:01.9]} 35. Bd2 {[%clk 0:04:32.2]} 35... Qxb2 {[%clk 0:06:00.9]} 36. Rh1+ {[%clk 0:04:29.8]} 36... Kg8 {[%clk 0:05:51.6]} 37. Kd3 {[%clk 0:04:10.4]} 37... Qxa2 {[%clk 0:05:38.6]} 38. Rc1 {[%clk 0:03:51]} 38... c5 {[%clk 0:05:19.8]} 39. Rc2 {[%clk 0:03:38.1]} 39... Qb3+ {[%clk 0:04:55.2]} 40. Bc3 {[%clk 0:03:15.5]} 40... Bg7 {[%clk 0:04:45.6]} 41. Kd2 {[%clk 0:03:00.3]} 41... Bxc3+ {[%clk 0:04:28.3]} 42. Rxc3 {[%clk 0:02:55.7]} 42... Qb2+ {[%clk 0:04:27.7]} 43. Rc2 {[%clk 0:02:51.7]} 43... Qb4+ {[%clk 0:04:27.4]} 44. Rc3 {[%clk 0:02:49]} 44... c4 {[%clk 0:04:27.1]} 45. Kc2 {[%clk 0:02:28]} 45... a5 {[%clk 0:04:24.3]} 46. e4 {[%clk 0:02:22]} 46... a4 {[%clk 0:04:23.3]} 47. e5 {[%clk 0:02:21.3]} 47... a3 {[%clk 0:04:22.1]} 48. Rh3 {[%clk 0:02:04.6]} 48... a2 {[%clk 0:04:16.6]} 0-1

[Event "Live Chess"]
[Site "Chess.com"]
[Date "2011.01.17"]
[Round "-"]
[White "hipposcottimus"]
[Black "EastGotHops"]
[Result "0-1"]
[CurrentPosition "8/5k2/4p3/8/3P3P/5q2/4r2K/8 w - -"]
[Timezone "UTC"]
[ECO "B01"]
[ECOUrl "https://www.chess.com/openings/Scandinavian-Defense-Mieses-Kotrc-Main-Line-4.d4-c6"]
[UTCDate "2011.01.17"]
[UTCTime "00:53:41"]
[WhiteElo "1379"]
[BlackElo "1144"]
[TimeControl "600"]
[Termination "EastGotHops won on time"]
[StartTime "00:53:41"]
[EndDate "2011.01.17"]
[EndTime "01:11:11"]
[Link "https://www.chess.com/game/live/88333929"]

1. e4 {[%clk 0:10:00]} 1... d5 {[%clk 0:10:00]} 2. exd5 {[%clk 0:09:58.5]} 2... Qxd5 {[%clk 0:09:59.1]} 3. Nc3 {[%clk 0:09:58.2]} 3... Qa5 {[%clk 0:09:57.5]} 4. d4 {[%clk 0:09:56.6]} 4... c6 {[%clk 0:09:56.6]} 5. Bd2 {[%clk 0:09:56.2]} 5... Qc7 {[%clk 0:09:55.2]} 6. Nf3 {[%clk 0:09:54.2]} 6... Nf6 {[%clk 0:09:54.8]} 7. Ne5 {[%clk 0:09:53]} 7... Qd6 {[%clk 0:09:35.4]} 8. Be3 {[%clk 0:09:50.2]} 8... Bf5 {[%clk 0:09:18.1]} 9. Bc4 {[%clk 0:09:48.8]} 9... e6 {[%clk 0:09:16.2]} 10. Bd3 {[%clk 0:09:39.9]} 10... Bxd3 {[%clk 0:09:14.4]} 11. Qxd3 {[%clk 0:09:37.5]} 11... Nbd7 {[%clk 0:09:14]} 12. Ne4 {[%clk 0:09:35.5]} 12... Nxe4 {[%clk 0:09:09.4]} 13. Nxd7 {[%clk 0:09:17.8]} 13... Qxd7 {[%clk 0:08:30.8]} 14. Qxe4 {[%clk 0:08:57.5]} 14... Bd6 {[%clk 0:08:26.7]} 15. O-O {[%clk 0:08:54.1]} 15... Bc7 {[%clk 0:08:23.8]} 16. f4 {[%clk 0:08:53]} 16... O-O-O {[%clk 0:08:11.4]} 17. c4 {[%clk 0:08:48.8]} 17... f5 {[%clk 0:08:10.3]} 18. Qd3 {[%clk 0:08:38.9]} 18... g5 {[%clk 0:07:59.3]} 19. fxg5 {[%clk 0:08:34.6]} 19... Rhg8 {[%clk 0:07:58.2]} 20. b4 {[%clk 0:08:32.1]} 20... b5 {[%clk 0:07:49.2]} 21. cxb5 {[%clk 0:08:30.1]} 21... Qd5 {[%clk 0:07:48.3]} 22. bxc6 {[%clk 0:08:26.3]} 22... Qxc6 {[%clk 0:07:34]} 23. b5 {[%clk 0:08:19.9]} 23... Qd5 {[%clk 0:07:24.1]} 24. a4 {[%clk 0:08:15.8]} 24... h6 {[%clk 0:07:20.5]} 25. Rac1 {[%clk 0:08:03]} 25... hxg5 {[%clk 0:07:09.6]} 26. a5 {[%clk 0:07:51.9]} 26... Kd7 {[%clk 0:06:51.3]} 27. b6 {[%clk 0:07:35.9]} 27... axb6 {[%clk 0:06:50.1]} 28. Rxc7+ {[%clk 0:07:27.4]} 28... Kxc7 {[%clk 0:06:44.9]} 29. axb6+ {[%clk 0:07:26.9]} 29... Kxb6 {[%clk 0:06:38.7]} 30. Rb1+ {[%clk 0:07:24.8]} 30... Kc7 {[%clk 0:06:28]} 31. Qa6 {[%clk 0:07:15.4]} 31... Kd7 {[%clk 0:06:19]} 32. Rb7+ {[%clk 0:07:09.2]} 32... Ke8 {[%clk 0:06:15.4]} 33. Qa7 {[%clk 0:07:04.5]} 33... Rd7 {[%clk 0:05:51.9]} 34. Rb8+ {[%clk 0:06:44.8]} 34... Kf7 {[%clk 0:05:48.7]} 35. Qb6 {[%clk 0:06:07.5]} 35... Rxb8 {[%clk 0:05:42.6]} 36. Qxb8 {[%clk 0:06:04.8]} 36... Rb7 {[%clk 0:05:14.3]} 37. Qh8 {[%clk 0:05:47.8]} 37... Rb1+ {[%clk 0:05:07.8]} 38. Kf2 {[%clk 0:05:45.2]} 38... Rb2+ {[%clk 0:05:00.8]} 39. Ke1 {[%clk 0:05:36.6]} 39... Rb1+ {[%clk 0:04:50.5]} 40. Kf2 {[%clk 0:05:17.9]} 40... Rb2+ {[%clk 0:04:46.6]} 41. Ke1 {[%clk 0:05:12.2]} 41... Qa5+ {[%clk 0:04:40.5]} 42. Kd1 {[%clk 0:04:59.4]} 42... Qa4+ {[%clk 0:04:26.6]} 43. Ke1 {[%clk 0:03:28.4]} 43... Qb4+ {[%clk 0:04:22.8]} 44. Kf1 {[%clk 0:03:16.3]} 44... Qc4+ {[%clk 0:04:11.8]} 45. Kg1 {[%clk 0:03:06.4]} 45... Rb1+ {[%clk 0:04:00.5]} 46. Kf2 {[%clk 0:02:55.4]} 46... Qf1+ {[%clk 0:03:51.4]} 47. Kg3 {[%clk 0:01:56.9]} 47... f4+ {[%clk 0:03:45.9]} 48. Kg4 {[%clk 0:01:22.8]} 48... Qxg2+ {[%clk 0:03:31]} 49. Kh5 {[%clk 0:01:18.4]} 49... Qh3+ {[%clk 0:02:50.7]} 50. Kxg5 {[%clk 0:01:13.1]} 50... Qxh8 {[%clk 0:02:49.6]} 51. Kxf4 {[%clk 0:01:12.6]} 51... Qf6+ {[%clk 0:02:45.6]} 52. Kg3 {[%clk 0:01:00.8]} 52... Rb3 {[%clk 0:02:40]} 53. h4 {[%clk 0:00:54.3]} 53... Rxe3+ {[%clk 0:02:38.3]} 54. Kg2 {[%clk 0:00:50.1]} 54... Qf3+ {[%clk 0:02:30.5]} 55. Kg1 {[%clk 0:00:45]} 55... Re1+ {[%clk 0:02:22.3]} 56. Kh2 {[%clk 0:00:37.1]} 56... Re2+ {[%clk 0:02:21]} 0-1

[Event "Live Chess"]
[Site "Chess.com"]
[Date "2011.01.17"]
[Round "-"]
[White "hipposcottimus"]
[Black "lcheney"]
[Result "1-0"]
[CurrentPosition "8/8/1R6/k1Q5/5P2/1pN5/P1P4P/1K3R2 b - -"]
[Timezone "UTC"]
[ECO "C40"]
[ECOUrl "https://www.chess.com/openings/Kings-Pawn-Opening-Kings-Knight-Variation"]
[UTCDate "2011.01.17"]
[UTCTime "00:43:00"]
[WhiteElo "1379"]
[BlackElo "1021"]
[TimeControl "360"]
[Termination "hipposcottimus won by checkmate"]
[StartTime "00:43:00"]
[EndDate "2011.01.17"]
[EndTime "00:52:34"]
[Link "https://www.chess.com/game/live/88331785"]

1. e4 {[%clk 0:06:00]} 1... e5 {[%clk 0:06:00]} 2. Nf3 {[%clk 0:05:58.5]} 2... g5 {[%clk 0:05:56.3]} 3. Nxe5 {[%clk 0:05:54.4]} 3... Qe7 {[%clk 0:05:51]} 4. d4 {[%clk 0:05:52.3]} 4... d6 {[%clk 0:05:45.2]} 5. Nd3 {[%clk 0:05:31.6]} 5... Qxe4+ {[%clk 0:05:41.8]} 6. Be3 {[%clk 0:05:28]} 6... Bg4 {[%clk 0:05:34.6]} 7. Be2 {[%clk 0:05:18.2]} 7... Bxe2 {[%clk 0:05:31.8]} 8. Qxe2 {[%clk 0:05:14.7]} 8... Qxg2 {[%clk 0:05:30.5]} 9. Bxg5+ {[%clk 0:05:04.1]} 9... Ne7 {[%clk 0:05:20.9]} 10. Rf1 {[%clk 0:04:14.2]} 10... Qxg5 {[%clk 0:05:18]} 11. Nd2 {[%clk 0:04:13.9]} 11... d5 {[%clk 0:05:09.5]} 12. O-O-O {[%clk 0:04:10.9]} 12... Nc6 {[%clk 0:05:04.6]} 13. f4 {[%clk 0:04:00.4]} 13... Qf5 {[%clk 0:04:59.5]} 14. Nf3 {[%clk 0:03:54.5]} 14... O-O-O {[%clk 0:04:57.3]} 15. Nde5 {[%clk 0:03:42.5]} 15... a5 {[%clk 0:04:48]} 16. Nh4 {[%clk 0:03:04.1]} 16... Qf6 {[%clk 0:04:38.9]} 17. Qg4+ {[%clk 0:02:50]} 17... Rd7 {[%clk 0:04:10.8]} 18. Nxd7 {[%clk 0:02:39.3]} 18... Nxd4 {[%clk 0:03:59.5]} 19. Nxf6+ {[%clk 0:02:37.4]} 19... Nef5 {[%clk 0:03:44.4]} 20. Nxf5 {[%clk 0:02:17.6]} 20... Nxf5 {[%clk 0:03:42.5]} 21. Qxf5+ {[%clk 0:02:16.9]} 21... Kb8 {[%clk 0:03:32.4]} 22. Nxd5 {[%clk 0:02:16.5]} 22... c6 {[%clk 0:03:30.5]} 23. Qe5+ {[%clk 0:02:12.8]} 23... Ka7 {[%clk 0:03:26.1]} 24. Qxh8 {[%clk 0:02:11.7]} 24... Bc5 {[%clk 0:03:20.8]} 25. Nc3 {[%clk 0:02:05.7]} 25... Kb6 {[%clk 0:03:14]} 26. Qxh7 {[%clk 0:01:59.7]} 26... f5 {[%clk 0:03:12.6]} 27. Qxf5 {[%clk 0:01:57.5]} 27... Be3+ {[%clk 0:03:08.2]} 28. Kb1 {[%clk 0:01:54.8]} 28... c5 {[%clk 0:03:04.3]} 29. Qe6+ {[%clk 0:01:41.9]} 29... Kc7 {[%clk 0:03:01.9]} 30. Qxe3 {[%clk 0:01:39.3]} 30... c4 {[%clk 0:02:59.6]} 31. Qc5+ {[%clk 0:01:32.5]} 31... Kb8 {[%clk 0:02:54.1]} 32. Qxc4 {[%clk 0:01:32.1]} 32... Ka7 {[%clk 0:02:51.1]} 33. Qc5+ {[%clk 0:01:15.2]} 33... b6 {[%clk 0:02:48.4]} 34. Nb5+ {[%clk 0:01:09.8]} 34... Ka6 {[%clk 0:02:47]} 35. Rd6 {[%clk 0:01:05.9]} 35... a4 {[%clk 0:02:43.7]} 36. Rxb6+ {[%clk 0:01:01.5]} 36... Ka5 {[%clk 0:02:41.8]} 37. b4+ {[%clk 0:00:54.2]} 37... axb3 {[%clk 0:01:58.1]} 38. Nc3# {[%clk 0:00:47.4]} 1-0